fUST/lending_fUST_20240202
["ID","MTS","AMOUNT","RATE_DAILY","PERIOD"]
[313146286,1706808631980,-83838.45829962,0.00019482,2]
[313146287,1706808631990,-18933.9483255,0.00019483,2]
[313146288,1706808632005,-1000.0,0.00019512,2]
[313146289,1706808632015,-1000.0,0.00019512,2]
[313146290,1706808632024,-1000.0,0.00019512,2]
[313146291,1706808632152,-1000.0,0.00019512,2]
[313146292,1706808632163,-1000.0,0.00019512,2]
[313146293,1706808632173,-1000.0,0.00019512,2]
[313146295,1706808632183,-155.01550127,0.00019568,2]
[313146297,1706808632192,-903.92109758,0.0001967,2]
[313146298,1706808632202,-195.20581949,0.00019679,2]
[313146299,1706808632211,-1636.10186837,0.0001978,2]
[313146300,1706808632220,-151.0,0.00021547,2]
[313146301,1706808632230,-2554.89683233,0.00021684,2]
[313146302,1706808632239,-14140.05107372,0.00021711,2]
[313146303,1706808632248,-550.3108845,0.00021721,2]
[313146304,1706808632267,-2058.71514344,0.00021721,2]
[313146372,1706808643019,-3336.73654764,0.00021721,2]
[313146373,1706808643028,-1764.05330181,0.00021721,2]
[313146374,1706808643038,-189.261757,0.00021918,2]
[313146375,1706808643047,-226.47398749,0.00022494,2]
[313146376,1706808643059,-978.95259375,0.00022498,2]
[313146377,1706808643068,-189.261757,0.00022773,2]
[313146378,1706808643078,-2804.60910662,0.00023,2]
[313146379,1706808643090,-1339.75307017,0.00023,2]
[313146380,1706808643102,-1696.87240803,0.00023,2]
[313146584,1706808645952,-2007.16443067,0.00023,2]
[313146586,1706808645961,-1261.69149652,0.00023,2]
[313146588,1706808645970,-151.0,0.00023426,2]
[313146590,1706808645980,-189.261757,0.00023627,2]
[313146592,1706808645989,-167.87365789,0.00023802,2]
[313146594,1706808645998,-201.09727447,0.00023802,2]
[313146596,1706808646007,-497.71575431,0.00023802,2]
[313146597,1706808646016,-213.30675185,0.00023802,2]
[313146599,1706808646025,-398.01782993,0.00023802,2]
[313146601,1706808646034,-189.261757,0.00024482,2]
[313146603,1706808646043,-2000.00000001,0.0002489,2]
[313146605,1706808646052,-1910.11,0.0002489,3]
[313146606,1706808646064,-917.55353193,0.00024896,2]
[313146608,1706808646073,-155.40458644,0.00024899,2]
[313146610,1706808646083,-587.3717883,0.00024899,2]
[313146612,1706808646092,-10110.25563722,0.00024899,2]
[313146614,1706808646101,-2159.91008607,0.000249,2]
[313146616,1706808646111,-7285.96888258,0.000249,2]
[313146617,1706808646121,-9516.1,0.000249,2]
[313146618,1706808646130,-112618.03437944,0.000249,2]
[313146620,1706808646139,-5000.0,0.00024927,2]
[313146622,1706808646149,-499.42473756,0.0002496,5]
[313146624,1706808646158,-628.41416648,0.00024996,2]
[313146626,1706808646167,-295.74422373,0.00024996,2]
[313146628,1706808646176,-330.54260284,0.00024996,2]
[313146629,1706808646185,-167.61349112,0.00024996,2]
[313146630,1706808646194,-155.01086192,0.00024996,2]
[313146631,1706808646203,-155.272863,0.00024996,2]
[313146632,1706808646212,-174.62917015,0.00024996,2]
[313146633,1706808646221,-297.37206321,0.00024996,2]
[313146634,1706808646230,-155.01550127,0.00024997,2]
[313146635,1706808646239,-382.68921557,0.00024997,2]
[313146636,1706808646249,-1247.97522813,0.00024998,2]
[313146637,1706808646258,-19056.24277957,0.00024998,2]
[313146638,1706808646267,-261.29004679,0.00024998,2]
[313146639,1706808646276,-161.38944257,0.00024998,2]
[313146640,1706808646285,-1991.4231386,0.00024998,2]
[313146641,1706808646294,-155.02480313,0.00024998,2]
[313146642,1706808646304,-155.03875603,0.00024998,2]
[313146643,1706808646316,-376.33954082,0.00024998,2]
[313146644,1706808646325,-1294.5477549,0.00024998,2]
[313146645,1706808646334,-20899.05725792,0.00024998,2]
[313146646,1706808646344,-903.98962863,0.00024998,2]
[313146647,1706808646354,-387.52215877,0.00024998,2]
[313146648,1706808646363,-2243.31161673,0.00024998,2]
[313146649,1706808646373,-156.58559388,0.00024998,2]
[313146650,1706808646382,-20914.12256812,0.00024998,2]
[313146651,1706808646391,-155.01550127,0.00024998,2]
[313146652,1706808646404,-1696.96318048,0.00024998,2]
[313146653,1706808646413,-679.2164194,0.00024998,2]
[313146654,1706808646422,-2284.65851696,0.00025,3]
[313146655,1706808646432,-1830.14346345,0.00025,2]
[313146656,1706808646442,-4732.83381239,0.00025,2]
[313146657,1706808646453,-8700.1390739,0.00025,2]
[313146658,1706808646462,-155.01550155,0.00025,2]
[313146659,1706808646471,-1026.08287796,0.00025,2]
[313146660,1706808646480,-155.01240099,0.00025,2]
[313146661,1706808646490,-4540.3640352,0.00025,2]
[313146662,1706808646501,-26886.43503176,0.00025,2]
[313146663,1706808646510,-21999.74975172,0.00025,2]
[313146664,1706808646519,-10032.864687,0.00025,10]
[313146665,1706808646529,-600.0,0.00025,2]
[313146666,1706808646539,-802.23260884,0.00025,2]
[313146667,1706808646548,-181.723044,0.00025,2]
[313146668,1706808646558,-5666.08756416,0.00025297,2]
[313146669,1706808646569,-151.0,0.00025304,2]
[313146670,1706808646578,-50000.0,0.00025388,2]
[313146671,1706808646587,-50000.0,0.00025388,2]
[313146672,1706808646597,-1628.80640033,0.000254,3]
[313146673,1706808646606,-200.0,0.00025479,2]
[313146674,1706808646615,-600.0,0.000255,2]
[313146675,1706808646624,-1000.0,0.00026,26]
[313146676,1706808646634,-600.0,0.00026,2]
[313146677,1706808646643,-1000.0,0.00026112,3]
[313146678,1706808646654,-1000.0,0.00026112,3]
[313146679,1706808646663,-1000.0,0.00026165,3]
[313146680,1706808646673,-334.282561,0.000263,12]
[313146681,1706808646682,-20079.2194332,0.00026418,2]
[313146682,1706808646692,-183.06250546,0.000265,4]
[313146683,1706808646701,-600.0,0.000265,2]
[313146684,1706808646711,-500.0,0.00026556,2]
[313146685,1706808646720,-195.63586809,0.00026556,2]
[313146686,1706808646729,-500.0,0.00026556,2]
[313146687,1706808646738,-500.0,0.00026556,2]
[313146688,1706808646747,-336.7221281,0.00026556,2]
[313146689,1706808646757,-500.0,0.00026556,2]
[313146690,1706808646766,-454.8881204,0.00026556,2]
[313146691,1706808646776,-313.02449612,0.00026556,2]
[313146692,1706808646786,-336.66045328,0.00026556,2]
[313146693,1706808646795,-5000.0,0.00026557,2]
[313146694,1706808646805,-5000.0,0.00026567,2]
[313146695,1706808646816,-1590.55747291,0.0002657,2]
[313146696,1706808646883,-3409.44252709,0.0002657,2]
[313146697,1706808646893,-3305.45448709,0.00026574,2]
[313146698,1706808646909,-300.98193919,0.00024899,2]
[313146699,1706808646919,-1694.54551291,0.00026574,2]
[313146700,1706808646928,-2605.21202084,0.00026574,2]
[313146719,1706808981384,150.5,0.0002887,61]
[313146720,1706808981747,150.5,0.0002886,61]
[313146721,1706808982192,150.5,0.0002885,61]
[313146739,1706809341312,293.29,0.0002887,61]
[313146816,1706809832119,-155.00465014,0.00021931,4]
[313146819,1706809832129,-4175.74955009,0.00021932,2]
[313146821,1706809832138,-1327.16102951,0.00021948,2]
[313146822,1706809832147,-711.22195219,0.0002196,2]
[313147107,1706809841309,-2111.81572043,0.00021931,2]
[313147308,1706809846090,-707.71894207,0.00021931,2]
[313147309,1706809846099,-3437.21205173,0.0002196,2]
[313147347,1706810239521,10000.0,0.00019436,2]
[313147387,1706810692694,285.785538,0.00019039,2]
[313147509,1706811038267,-258.51804001,0.00019395,2]
[313147522,1706811038380,-2561.01662249,0.00019395,2]
[313147524,1706811038390,-689.23338559,0.00019396,2]
[313147526,1706811038400,-155.00465014,0.00019396,2]
[313147528,1706811038409,-155.00310006,0.00019397,3]
[313147530,1706811038419,-198.47999652,0.0001986,2]
[313147532,1706811038428,-155.00155002,0.00020988,2]
[313147535,1706811038437,-7040.35,0.0002099,3]
[313147537,1706811038446,-13425.48,0.0002099,3]
[313147540,1706811038455,-11187.9,0.0002099,3]
[313147542,1706811038464,-9323.25,0.0002099,3]
[313147544,1706811038473,-155.00155002,0.00020999,2]
[313147546,1706811038482,-93071.55053032,0.00021,2]
[313147548,1706811038492,-14900.0,0.000214,2]
[313147550,1706811038501,-155.00465014,0.00021954,2]
[313147552,1706811038510,-10887.67223611,0.0002196,2]
[313147554,1706811038519,-3197.9663533,0.0002196,2]
[313147556,1706811038528,-300.0,0.0002196,2]
[313147558,1706811038537,-1327.35238591,0.00021973,2]
[313147560,1706811038546,-34001.7424702,0.00021973,2]
[313147562,1706811038554,-2312.33643904,0.00021973,2]
[313147564,1706811038563,-441.01332545,0.00021973,2]
[313147566,1706811038572,-3399.66190371,0.00021979,2]
[313147568,1706811038582,-978.95259375,0.00022498,2]
[313147570,1706811038590,-6369.13718193,0.00023004,2]
[313147572,1706811038600,-200.0,0.00023088,7]
[313147574,1706811038609,-700.0,0.00023939,2]
[313147576,1706811038618,-1000.0,0.00023939,3]
[313147578,1706811038627,-407.32334689,0.00023939,2]
[313147580,1706811038636,-165.90525144,0.00023939,2]
[313147582,1706811038645,-174.4078209,0.00023939,2]
[313147584,1706811038654,-359.10602558,0.00023939,2]
[313147586,1706811038663,-19466.04004087,0.00024748,2]
[313147589,1706811038676,-2246.65648709,0.00024748,2]
[313147591,1706811038685,-1121.81735224,0.00024748,2]
[313147593,1706811038694,-198.47999652,0.0002486,2]
[313147595,1706811038703,-155.02480238,0.00024898,2]
[313147597,1706811038713,-168.48090464,0.00024898,2]
[313147599,1706811038722,-1363.43088153,0.00024898,2]
[313147601,1706811038731,-2690.63531931,0.00024898,2]
[313147603,1706811038740,-702.80964455,0.00024898,2]
[313147605,1706811038750,-499.42473756,0.0002496,5]
[313147607,1706811038759,-1088.17304806,0.00024989,2]
[313147609,1706811038768,-2106.51819104,0.00024998,2]
[313147611,1706811038777,-1294.9059591,0.00024998,2]
[313147613,1706811038786,-155.12462204,0.00024998,2]
[313147615,1706811038795,-155.17453603,0.00024998,2]
[313147617,1706811038804,-230.4636117,0.00024998,2]
[313147619,1706811038813,-1856.25502519,0.00024998,2]
[313147621,1706811038823,-309.72125088,0.00024998,2]
[313147623,1706811038832,-17423.97310708,0.00024998,2]
[313147729,1706811046278,-201.26939385,0.00024997,2]
[313147730,1706811046288,-1570.98170152,0.00024998,2]
[313147731,1706811046349,-268.87867758,0.00024998,2]
[313147732,1706811123755,274.03,0.0002849,61]
[313147787,1706812232441,-639.6448056,0.00021945,2]
[313147788,1706812232451,-199.53725951,0.00021946,2]
[313147789,1706812232460,-155.00310006,0.00021946,4]
[313147790,1706812232470,-2819.5346625,0.00021947,2]
[313147791,1706812232479,-155.00310006,0.00021947,2]
[313147792,1706812232488,-1833.46244021,0.00021998,2]
[313147793,1706812232497,-3676.80454869,0.00021998,2]
[313147810,1706812238470,-2819.5346625,0.00021944,2]
[313147811,1706812238480,-1013.56137005,0.00021998,2]
[313147812,1706812238490,-2100.81070734,0.00021998,2]
[313147813,1706812238499,-2483.22774079,0.00023939,2]
[313147814,1706812238508,-176.48237681,0.00023939,2]
[313147815,1706812238518,-200.0,0.00024197,7]
[313147816,1706812238528,-499.42473756,0.0002496,5]
[313147817,1706812238537,-3593.04840495,0.0002499,3]
[313147822,1706812238595,-4176.32159505,0.0002499,3]
[313147824,1706812238605,-3224.62139693,0.0002499,3]
[313147835,1706812241682,-262.12967351,0.00024996,2]
[313147836,1706812241692,-456.49495188,0.00024998,2]
[313147837,1706812241701,-309.94424177,0.00024998,2]
[313147838,1706812241710,-155.15654956,0.00024998,2]
[313147839,1706812241719,-303.67144018,0.00024998,2]
[313147840,1706812241729,-155.02170276,0.00024998,2]
[313147841,1706812241738,-378.36867229,0.00024998,2]
[313147842,1706812241747,-200.30997645,0.00024998,2]
[313147843,1706812241756,-309.72125088,0.00024998,2]
[313147844,1706812241765,-155.18994211,0.00024998,2]
[313147845,1706812241774,-156.27626814,0.00024998,2]
[313147846,1706812241783,-2893.2952672,0.00024998,2]
[313147847,1706812241795,-2320.72787305,0.00024998,2]
[313147848,1706812241804,-1096.73099442,0.00024998,2]
[313147952,1706812246634,-155.00310006,0.00022498,4]
[313147954,1706812246644,-944.39877853,0.00024998,2]
[313147956,1706812246654,-329.86581438,0.00024998,2]
[313147958,1706812246666,-155.70723413,0.00024998,2]
[313147960,1706812246675,-155.13836492,0.00024998,2]
[313147961,1706812246684,-309.9690031,0.00024998,2]
[313147963,1706812246694,-309.9690031,0.00024998,2]
[313147965,1706812246703,-548.93538962,0.00024998,2]
[313147967,1706812246713,-182.63179081,0.00024998,2]
[313147968,1706812246723,-208.57217444,0.00024998,2]
[313147969,1706812246734,-199.53725951,0.00024998,2]
[313147970,1706812246744,-241.96002461,0.00024998,2]
[313147971,1706812246754,-199.78854245,0.00024999,2]
[313147972,1706812246764,-1267.14967476,0.00024999,2]
[313147973,1706812246773,-155.00930028,0.00024999,2]
[313147974,1706812246783,-608.24990401,0.00024999,2]
[313147975,1706812246793,-3047.74760506,0.00025,2]
[313147976,1706812246802,-9084.13399691,0.00025,2]
[313147977,1706812246812,-3512.7513694,0.00025,2]
[313147978,1706812246821,-4551.47814612,0.00025,2]
[313147979,1706812246833,-4832.2,0.00025,2]
[313148000,1706812840630,1489.53170713,0.00029,55]
[313148042,1706813432621,-630.31445063,0.00021995,2]
[313148066,1706813438830,-979.1298003,0.00021995,2]
[313148067,1706813438842,-1210.09041157,0.00021995,2]
[313148068,1706813438852,-731.58309711,0.00021996,2]
[313148069,1706813438861,-731.58309711,0.00021996,2]
[313148070,1706813438870,-215.29386673,0.00021998,2]
[313148071,1706813438879,-604.32761748,0.00021998,2]
[313148073,1706813441882,-4395.67238252,0.00021998,2]
[313148074,1706813441892,-744.36714553,0.00021998,2]
[313148075,1706813441901,-895.61475039,0.00023939,2]
[313148076,1706813441911,-246.35839111,0.00023939,2]
[313148077,1706813441923,-200.0,0.00024197,7]
[313148078,1706813441934,-155.00310006,0.00024208,4]
[313148079,1706813441943,-499.42473756,0.0002496,5]
[313148080,1706813441952,-5052.70201119,0.00025,2]
[313148081,1706813441961,-155.0,0.00025,2]
[313148082,1706813441970,-3512.7513694,0.00025,2]
[313148083,1706813441982,-13698.92336641,0.00025,2]
[313148084,1706813441991,-9084.13399691,0.00025,2]
[313148085,1706813442001,-1026.08287796,0.00025203,2]
[313148086,1706813442011,-155.00310006,0.00025204,2]
[313148087,1706813442021,-153.0,0.00025205,2]
[313148088,1706813442030,-153.0,0.00025852,2]
[313148089,1706813442051,-153.8831869,0.00025952,2]
[313148090,1706813442061,-999.0,0.000265,2]
[313148091,1706813442070,-183.06250546,0.00026572,4]
[313148092,1706813442080,-288.57460372,0.00026573,2]
[313148093,1706813442090,-2394.78797916,0.00026574,2]
[313148094,1706813442100,-168.88418216,0.00026584,2]
[313148095,1706813442109,-15810.89449436,0.000268,2]
[313148129,1706813444037,-937.99234842,0.0002511,2]
[313148132,1706813446716,-2179.9945045,0.0002511,2]
[313148133,1706813446729,-938.95766712,0.0002511,2]
[313148189,1706813569925,-5000.0,0.00031,120]
[313148190,1706813569986,-4999.3259,0.00031,120]
[313148191,1706813570010,-5000.0,0.000331,120]
[313148192,1706813570031,-0.6741,0.000331,120]
[313148193,1706813570142,-4999.3259,0.000331,120]
[313148194,1706813570163,-0.6741,0.000332,120]
[313148195,1706813570231,-4999.3259,0.000332,120]
[313148196,1706813570251,-0.6741,0.000332,120]
[313148197,1706813570353,-4999.3259,0.000332,120]
[313148304,1706814631751,-209.0347316,0.00021165,2]
[313148306,1706814631761,-2819.5346625,0.00021917,2]
[313148308,1706814631769,-400.74955447,0.00021918,2]
[313148309,1706814631778,-430.04443012,0.00021977,2]
[313148310,1706814631787,-502.58098565,0.00022067,3]
[313148311,1706814631804,-1374.04771484,0.00022067,3]
[313148337,1706814637857,-250.33773919,0.00022067,3]
[313148339,1706814637869,-336.967,0.00022067,3]
[313148344,1706814637914,-931.58656032,0.00022067,3]
[313148346,1706814637923,-50000.0,0.00022077,2]
[313148348,1706814637933,-29152.39262958,0.00022077,2]
[313148350,1706814637946,-20847.60737042,0.00022077,2]
[313148352,1706814637954,-53323.02526582,0.00022077,2]
[313148354,1706814637963,-1000.0,0.00022077,2]
[313148356,1706814637973,-1000.0,0.00022077,2]
[313148358,1706814637982,-1000.0,0.00022077,2]
[313148360,1706814637992,-1000.0,0.00022077,2]
[313148362,1706814638001,-1000.0,0.00022077,2]
[313148365,1706814638010,-1000.0,0.00022077,2]
[313148368,1706814638020,-525.20267684,0.00022085,2]
[313148370,1706814638029,-430.04443011,0.00022432,2]
[313148372,1706814638038,-430.04443011,0.00022887,2]
[313148374,1706814638048,-430.04443011,0.00023341,2]
[313148376,1706814638057,-749.216733,0.00023796,2]
[313148378,1706814638067,-749.216733,0.00023796,2]
[313148380,1706814638075,-151.0,0.00023796,2]
[313148382,1706814638084,-151.0,0.00023796,2]
[313148384,1706814638093,-154.777918,0.00023796,2]
[313148386,1706814638102,-151.0,0.00023796,2]
[313148388,1706814638111,-430.04443011,0.00023796,2]
[313148389,1706814638121,-191108.54851525,0.00023796,2]
[313148391,1706814638130,-3022.81629331,0.00023896,2]
[313148393,1706814638139,-1502.82572002,0.00023939,2]
[313148395,1706814638148,-654.13450691,0.00023939,2]
[313148397,1706814638157,-500.0,0.00024382,2]
[313148399,1706814638167,-500.0,0.00024382,2]
[313148401,1706814638176,-500.0,0.00024382,2]
[313148403,1706814638186,-500.0,0.00024382,2]
[313148405,1706814638194,-500.0,0.00024382,2]
[313148407,1706814638203,-500.0,0.00024382,2]
[313148409,1706814638212,-337.70440343,0.00024382,2]
[313148410,1706814638222,-500.0,0.00024382,2]
[313148412,1706814638231,-604.59183848,0.00024382,2]
[313148413,1706814638240,-500.0,0.00024382,2]
[313148414,1706814638250,-500.0,0.00024382,2]
[313148415,1706814638259,-425.31454102,0.00024382,2]
[313148416,1706814638268,-500.0,0.00024382,2]
[313148417,1706814638277,-634.03071431,0.00024382,2]
[313148418,1706814638287,-156.35796755,0.00024382,2]
[313148419,1706814638298,-500.0,0.00024382,2]
[313148420,1706814638307,-500.0,0.00024382,2]
[313148421,1706814638316,-278.06364062,0.00024382,2]
[313148422,1706814638325,-500.0,0.00024382,2]
[313148423,1706814638334,-500.0,0.00024382,2]
[313148424,1706814638344,-500.0,0.00024382,2]
[313148425,1706814638353,-500.0,0.00024382,2]
[313148426,1706814638362,-500.0,0.00024382,2]
[313148427,1706814638371,-500.0,0.00024382,2]
[313148428,1706814638381,-500.0,0.00024382,2]
[313148429,1706814638390,-500.0,0.00024382,2]
[313148430,1706814638397,-500.0,0.00024382,2]
[313148431,1706814638406,-500.0,0.00024382,2]
[313148432,1706814638415,-212.78573443,0.00024382,2]
[313148433,1706814638424,-500.0,0.00024382,2]
[313148434,1706814638436,-500.0,0.00024382,2]
[313148435,1706814638444,-500.0,0.00024382,2]
[313148436,1706814638454,-500.0,0.00024382,2]
[313148437,1706814638463,-500.0,0.00024382,2]
[313148439,1706814638474,-549.08787879,0.00024382,2]
[313148441,1706814638483,-500.0,0.00024382,2]
[313148443,1706814638492,-500.0,0.00024382,2]
[313148445,1706814638501,-500.0,0.00024382,2]
[313148447,1706814638510,-500.0,0.00024382,2]
[313148449,1706814638520,-151.0,0.00024384,2]
[313148451,1706814638528,-1782.978755,0.00024384,2]
[313148453,1706814638537,-1782.978755,0.00024384,2]
[313148455,1706814638546,-276.6707132,0.00024385,2]
[313148457,1706814638555,-151.591208,0.00024385,2]
[313148459,1706814638564,-749.216733,0.00024385,2]
[313148461,1706814638573,-749.216733,0.00024385,2]
[313148463,1706814638582,-151.0,0.00024385,2]
[313148465,1706814638591,-151.0,0.00024385,2]
[313148467,1706814638600,-151.0,0.00024385,2]
[313148469,1706814638608,-151.0,0.00024385,2]
[313148471,1706814638617,-261877.22401357,0.00024386,2]
[313148473,1706814638626,-151.0,0.00024386,2]
[313148475,1706814638635,-151.0,0.00024386,2]
[313148476,1706814638644,-235.364499,0.00024386,2]
[313148479,1706814638654,-235.364499,0.00024386,2]
[313148481,1706814638663,-749.216733,0.00024386,2]
[313148483,1706814638672,-749.216733,0.00024386,2]
[313148484,1706814638683,-151.0,0.00024386,2]
[313148487,1706814638692,-293.89811,0.00024386,2]
[313148489,1706814638701,-151.0,0.00024386,2]
[313148491,1706814638710,-151.0,0.00024386,2]
[313148492,1706814638719,-1782.978755,0.00024386,2]
[313148495,1706814638728,-1782.978755,0.00024386,2]
[313148497,1706814638738,-499.42473756,0.0002496,5]
[313148498,1706814638747,-7137.1390739,0.00025,2]
[313148500,1706814638757,-4732.83381239,0.00025,2]
[313148502,1706814638766,-1830.14346345,0.00025,2]
[313148504,1706814638775,-155.00310006,0.00025,2]
[313148506,1706814638784,-534.58917942,0.00025,2]
[313148508,1706814638793,-11602.02715487,0.00025109,2]
[313148510,1706814638802,-151.0,0.00025109,2]
[313148512,1706814638811,-151.0,0.00025109,2]
[313148514,1706814638820,-235.364499,0.00025109,2]
[313148516,1706814638828,-235.364499,0.00025109,2]
[313148518,1706814638838,-749.216733,0.00025109,2]
[313148520,1706814638846,-749.216733,0.00025109,2]
[313148522,1706814638856,-151.0,0.00025109,2]
[313148524,1706814638864,-151.0,0.00025109,2]
[313148526,1706814638872,-1782.978755,0.00025109,2]
[313148528,1706814638881,-1782.978755,0.00025109,2]
[313148530,1706814638890,-943.05547996,0.0002511,2]
[313148532,1706814638899,-235.01682964,0.0002511,2]
[313148533,1706814638908,-212.09151868,0.0002511,2]
[313148536,1706814638918,-2086.73700022,0.0002511,2]
[313148537,1706814638927,-1828.0659992,0.0002511,2]
[313148539,1706814638936,-151.0,0.00025329,2]
[313148541,1706814638945,-183.06250546,0.000265,4]
[313148543,1706814638955,-151.0,0.00026728,2]
[313148545,1706814638964,-151.0,0.00026728,2]
[313148547,1706814638973,-235.364499,0.00026728,2]
[313148549,1706814638982,-235.364499,0.00026728,2]
[313148552,1706814638994,-749.216733,0.00026728,2]
[313148554,1706814639003,-749.216733,0.00026728,2]
[313148556,1706814639012,-151.0,0.00026728,2]
[313148558,1706814639022,-226.96975,0.00026728,2]
[313148560,1706814639031,-1782.978755,0.00026728,2]
[313148562,1706814639040,-1782.978755,0.00026728,2]
[313148564,1706814639049,-15512.56255838,0.00026728,2]
[313148565,1706814639058,-151.0,0.000268,2]
[313148567,1706814639067,-151.0,0.000268,2]
[313148569,1706814639076,-235.364499,0.000268,2]
[313148571,1706814639086,-235.364499,0.000268,2]
[313148573,1706814639095,-287.3135433,0.00026863,2]
[313148575,1706814639105,-151.0,0.00026864,2]
[313148577,1706814639114,-283.23677315,0.00026997,2]
[313148579,1706814639124,-1313.36981214,0.00026998,2]
[313148592,1706814639134,-3317.77219557,0.00026998,2]
[313148594,1706814639242,-1295.2641633,0.00026998,2]
[313148596,1706814639251,-904.83318342,0.00026998,2]
[313148598,1706814639261,-155.00465014,0.00026998,2]
[313148600,1706814639271,-11477.44689811,0.00026998,2]
[313148602,1706814639280,-155.82449874,0.00026998,2]
[313148604,1706814639289,-4020.32440334,0.00026998,2]
[313148606,1706814639303,-180.04943139,0.00026998,2]
[313148608,1706814639312,-5598.40634948,0.00026998,2]
[313148610,1706814639321,-4090.53090943,0.00026998,2]
[313148612,1706814639330,-397.82280254,0.00026998,2]
[313148614,1706814639340,-15925.99196946,0.00026998,2]
[313148616,1706814639349,-245.08977524,0.00026998,2]
[313148618,1706814639358,-241.77436975,0.00026998,2]
[313148620,1706814639368,-265.25547221,0.00026998,2]
[313148622,1706814639379,-151.0,0.00026998,2]
[313148624,1706814639388,-151.0,0.00026998,2]
[313148626,1706814639397,-151.0,0.00026998,2]
[313148628,1706814639406,-151.0,0.00026998,2]
[313148630,1706814639416,-235.364499,0.00026998,2]
[313148632,1706814639424,-235.364499,0.00026998,2]
[313148634,1706814639434,-235.364499,0.00026998,2]
[313148636,1706814639443,-235.364499,0.00026998,2]
[313148638,1706814639453,-749.216733,0.00026998,2]
[313148640,1706814639464,-749.216733,0.00026998,2]
[313148642,1706814639474,-749.216733,0.00026998,2]
[313148644,1706814639483,-749.216733,0.00026998,2]
[313148646,1706814639491,-151.0,0.00026998,2]
[313148648,1706814639500,-151.0,0.00026998,2]
[313148650,1706814639510,-1782.978755,0.00026998,2]
[313148652,1706814639518,-1782.978755,0.00026998,2]
[313148654,1706814639527,-1782.978755,0.00026998,2]
[313148656,1706814639536,-1782.978755,0.00026998,2]
[313148658,1706814639547,-165.88813996,0.00026999,2]
[313148660,1706814639556,-1510.97061687,0.00026999,2]
[313148662,1706814639565,-500.0,0.00026999,2]
[313148664,1706814639574,-500.0,0.00026999,2]
[313148666,1706814639584,-500.0,0.00026999,2]
[313148668,1706814639592,-180.58494278,0.00026999,2]
[313148670,1706814639601,-500.0,0.00026999,2]
[313148672,1706814639611,-500.0,0.00026999,2]
[313148673,1706814639619,-500.0,0.00026999,2]
[313148674,1706814639628,-362.90320273,0.00026999,2]
[313148676,1706814639637,-500.0,0.00026999,2]
[313148678,1706814639646,-500.0,0.00026999,2]
[313148679,1706814639655,-500.0,0.00026999,2]
[313148681,1706814639665,-216.9402589,0.00026999,2]
[313148682,1706814639674,-290.63658736,0.00026999,2]
[313148683,1706814639683,-420.31727252,0.00026999,2]
[313148684,1706814639692,-270.53436153,0.00026999,2]
[313148685,1706814639702,-500.0,0.00026999,2]
[313148686,1706814639711,-500.0,0.00026999,2]
[313148687,1706814639720,-500.0,0.00026999,2]
[313148688,1706814639730,-500.0,0.00026999,2]
[313148689,1706814639738,-503.15622545,0.00026999,2]
[313148690,1706814639747,-500.0,0.00026999,2]
[313148691,1706814639756,-500.0,0.00026999,2]
[313148692,1706814639766,-500.0,0.00026999,2]
[313148693,1706814639775,-500.0,0.00026999,2]
[313148694,1706814639784,-500.0,0.00026999,2]
[313148695,1706814639793,-1782.978755,0.00026999,2]
[313148696,1706814639802,-1782.978755,0.00026999,2]
[313148697,1706814639812,-28586.0,0.00027,2]
[313148698,1706814639821,-1000.0,0.00027,27]
[313148699,1706814639830,-30404.74925532,0.00027,2]
[313148700,1706814639839,-5499.99999901,0.00027,2]
[313148701,1706814639848,-80000.0,0.00027,3]
[313148702,1706814639857,-2178.56712274,0.00027,3]
[313148703,1706814639867,-30594.81449792,0.00027,7]
[313148733,1706814641149,-10000.19841,0.00027,7]
[313148734,1706814641160,-2692.24424372,0.00027,7]
[313148768,1706814642875,-763.59512221,0.00027,7]
[313148790,1706814645907,-2403.84931221,0.00023939,2]
[313148791,1706814645916,-599.32442984,0.00027,7]